bitfinex/quotes_SOLUSD_20230116
["timestamp","ask_amount","ask_price","bid_price","bid_amount"]
[1673905862291,48.78,23.614,23.597,20.0]
[1673905862501,20.0,23.613,23.597,20.0]
[1673905862727,48.79,23.612,23.597,20.0]
[1673905862921,20.0,23.611,23.597,20.0]
[1673905863132,17.0,23.61,23.597,20.0]
[1673905865553,51.77,23.62,23.6,16.34]
[1673905865767,20.0,23.62,23.601,57.0]
[1673905865970,20.0,23.62,23.601,85.39]
[1673905866181,51.76,23.629,23.601,104.298252]
[1673905866513,51.76,23.629,23.601,85.39]
[1673905866826,31.8570316,23.628,23.601,85.39]
[1673905867256,31.8570316,23.628,23.601,148.38980602]
[1673905867480,31.8570316,23.628,23.61,16.34]
[1673905867481,11.8570316,23.628,23.61,16.34]
[1673905867788,11.8570316,23.628,23.611,85.73]
[1673905868613,11.8570316,23.628,23.611,104.638252]
[1673905869999,11.8570316,23.628,23.612,18.908252]
[1673905870188,20.0,23.636,23.613,86.39]
[1673905870735,17.0,23.632,23.613,86.39]
[1673905871051,20.0,23.631,23.613,66.39]
[1673905871234,17.0,23.63,23.613,20.0]
[1673905871449,20.0,23.631,23.611,29.29]
[1673905871668,20.0,23.631,23.612,37.0]
[1673905871869,20.0,23.631,23.614,20.0]
[1673905872089,20.0,23.636,23.615,17.0]
[1673905872933,17.0,23.632,23.616,20.0]
[1673905873145,17.0,23.632,23.614,20.0]
[1673905873342,17.0,23.632,23.611,20.0]
[1673905873547,20.0,23.631,23.611,20.0]
[1673905873883,20.0,23.629,23.611,20.0]
[1673905874092,17.0,23.628,23.611,20.0]
[1673905874639,17.0,23.628,23.612,20.0]
[1673905874812,17.0,23.628,23.613,20.0]
[1673905875763,20.0,23.631,23.615,20.0]
[1673905876091,20.0,23.633,23.616,20.0]
[1673905876306,20.0,23.633,23.617,20.0]
[1673905876620,20.0,23.634,23.616,20.0]
[1673905877224,20.0,23.638,23.617,17.0]
[1673905877433,51.75,23.638,23.619,20.0]
[1673905877862,20.0,23.638,23.62,20.0]
[1673905879135,20.0,23.636,23.62,20.0]
[1673905879351,20.0,23.636,23.618,20.0]
[1673905879667,20.0,23.634,23.613,31.78]
[1673905879851,17.0,23.633,23.612,31.79]
[1673905880060,17.0,23.633,23.612,20.0]
[1673905880394,20.0,23.632,23.612,20.0]
[1673905880705,17.0,23.631,23.612,20.0]
[1673905880907,17.0,23.631,23.613,17.0]
[1673905881121,17.0,23.631,23.614,20.0]
[1673905881751,17.0,23.631,23.615,20.0]
[1673905881965,20.0,23.634,23.616,20.0]
[1673905882689,20.0,23.634,23.614,20.0]
[1673905883339,17.0,23.633,23.613,20.0]
[1673905883554,20.0,23.632,23.613,20.0]
[1673905883869,17.0,23.631,23.613,20.0]
[1673905885233,17.0,23.631,23.614,20.0]
[1673905886182,20.0,23.634,23.616,20.0]
[1673905886495,20.0,23.634,23.616,40.0]
[1673905886711,20.0,23.634,23.617,20.0]
[1673905887759,20.0,23.634,23.615,20.0]
[1673905888160,17.0,23.633,23.615,20.0]
[1673905890581,17.0,23.633,23.616,20.0]
[1673905892994,17.0,23.633,23.615,20.0]
[1673905893443,20.0,23.632,23.615,20.0]
[1673905893745,17.0,23.631,23.612,20.0]
[1673905893955,17.0,23.631,23.613,20.0]
[1673905894150,17.0,23.631,23.614,20.0]
[1673905894481,20.0,23.634,23.614,20.0]
[1673905894482,31.76,23.633,23.614,20.0]
[1673905894675,20.0,23.634,23.616,20.0]
[1673905894879,17.0,23.633,23.616,20.0]
[1673905896793,20.0,23.634,23.617,20.0]
[1673905898790,17.0,23.633,23.615,20.0]
[1673905899002,17.0,23.633,23.614,20.0]
[1673905899429,20.0,23.634,23.615,17.0]
[1673905899615,20.0,23.634,23.616,20.0]
[1673905899830,17.0,23.633,23.616,20.0]
[1673905900380,17.0,23.633,23.614,20.0]
[1673905900684,31.75,23.635,23.615,67.688252]
[1673905900903,16.17,23.65,23.62,16.29]
[1673905900904,31.74,23.642,23.62,16.29]
[1673905901109,51.74,23.643,23.621,153.5052]
[1673905901718,51.74,23.643,23.621,271.3592]
[1673905902250,51.74,23.643,23.621,254.3592]
[1673905902251,20.0,23.639,23.621,254.3592]
[1673905902581,17.0,23.638,23.621,254.3592]
[1673905902783,20.0,23.637,23.621,254.3592]
[1673905902998,17.0,23.636,23.621,254.3592]
[1673905904874,20.0,23.635,23.616,31.78]
[1673905905102,17.0,23.634,23.617,20.0]
[1673905905313,20.0,23.633,23.614,137.409452]
[1673905905529,20.0,23.633,23.615,30.03]
[1673905905740,20.0,23.633,23.616,20.0]
[1673905906048,20.0,23.637,23.616,20.0]
[1673905906361,20.0,23.637,23.618,20.0]
[1673905906567,20.0,23.637,23.619,51.03]
[1673905906787,20.0,23.637,23.62,37.0]
[1673905907201,51.74,23.644,23.62,37.0]
[1673905907413,51.74,23.644,23.622,20.0]
[1673905907629,20.0,23.644,23.623,37.0]
[1673905908277,20.0,23.644,23.625,20.0]
[1673905908484,20.0,23.644,23.627,20.0]
[1673905908803,20.0,23.644,23.625,20.0]
[1673905908995,20.0,23.644,23.628,17.0]
[1673905909207,31.74,23.648,23.63,16.19]
[1673905909423,31.73,23.653,23.632,20.0]
[1673905909642,23.0,23.656,23.634,20.0]
[1673905909643,20.0,23.654,23.634,20.0]
[1673905909830,31.73,23.653,23.635,17.0]
[1673905910042,20.0,23.652,23.635,17.0]
[1673905910250,23.0,23.656,23.636,64.09155402]
[1673905910572,3.0,23.656,23.64,16.29]
[1673905910778,3.0,23.656,23.641,57.0]
[1673905911105,3.0,23.656,23.642,63.02187873]
[1673905911309,3.0,23.656,23.643,37.0]
[1673905911518,3.0,23.656,23.644,20.0]
[1673905911731,3.0,23.656,23.645,37.0]
[1673905911931,3.0,23.656,23.645,80.02187873]
[1673905912138,3.0,23.656,23.646,20.0]
[1673905912350,3.0,23.656,23.65,16.29]
[1673905912562,3.0,23.656,23.651,37.0]
[1673905912772,3.0,23.656,23.651,91.36009941]
[1673905913187,3.0,23.656,23.652,48.33822068]
[1673905913399,3.0,23.656,23.646,20.0]
[1673905913610,3.0,23.656,23.648,20.0]
[1673905913827,3.0,23.656,23.649,17.0]
[1673905914387,3.0,23.656,23.651,20.0]
[1673905914683,3.0,23.656,23.652,17.0]
[1673905915956,3.0,23.656,23.652,65.33822068]
[1673905916142,3.0,23.656,23.653,20.0]
[1673905916565,3.0,23.656,23.653,91.36009941]
[1673905916976,3.0,23.656,23.654,20.0]
[1673905917306,3.0,23.656,23.655,48.33822068]
[1673905918675,3.0,23.656,23.651,20.0]
[1673905918987,3.0,23.656,23.649,48.33822068]
[1673905919180,3.0,23.656,23.651,48.33822068]
[1673905919390,3.0,23.656,23.642,20.0]
[1673905919620,3.0,23.656,23.647,20.0]
[1673905920039,3.0,23.656,23.648,20.0]
[1673905920446,20.0,23.667,23.65,16.29]
[1673905920654,20.0,23.667,23.651,20.0]
[1673905920869,20.0,23.667,23.651,87.24647268]
[1673905921103,20.0,23.667,23.652,87.24647268]
[1673905921412,20.0,23.667,23.653,38.908252]
[1673905921620,20.0,23.667,23.653,18.908252]
[1673905921621,31.71,23.666,23.653,18.908252]
[1673905921814,31.71,23.666,23.65,16.29]
[1673905922035,20.0,23.665,23.653,18.908252]
[1673905922243,31.71,23.666,23.653,18.908252]
[1673905922453,31.71,23.668,23.654,47.91690779]
[1673905922780,31.7,23.672,23.655,46.82515979]
[1673905923092,20.0,23.671,23.656,18.908252]
[1673905923312,20.0,23.669,23.656,18.908252]
[1673905923847,20.0,23.669,23.657,20.0]
[1673905924165,20.0,23.669,23.657,38.908252]
[1673905924679,31.71,23.668,23.653,116.748]
[1673905924886,31.71,23.668,23.655,64.54986124]
[1673905925423,31.71,23.668,23.656,106.06001817]
[1673905925923,31.71,23.668,23.657,45.64160924]
[1673905926255,20.0,23.667,23.657,45.64160924]
[1673905926466,31.71,23.666,23.657,45.64160924]
[1673905926779,31.71,23.666,23.656,60.41840893]
[1673905927187,31.71,23.666,23.657,41.51015693]
[1673905927599,20.0,23.667,23.657,41.51015693]
[1673905927833,20.0,23.667,23.657,87.15176617]
[1673905928049,20.0,23.667,23.657,106.06001817]
[1673905928441,31.71,23.668,23.657,106.06001817]
[1673905928765,31.21,23.668,23.657,106.06001817]
[1673905929092,31.71,23.67,23.657,106.06001817]
[1673905930460,31.71,23.67,23.658,20.0]
[1673905930666,31.71,23.67,23.657,106.06001817]
[1673905930881,31.71,23.67,23.659,85.81997684]
[1673905931189,31.71,23.67,23.66,85.81997684]
[1673905931506,31.71,23.67,23.661,85.81997684]
[1673905932036,31.71,23.67,23.662,85.81997684]
[1673905932442,31.71,23.67,23.663,85.81997684]
[1673905932862,31.71,23.67,23.664,85.81997684]
[1673905933192,31.71,23.671,23.664,85.81997684]
[1673905933382,31.7,23.677,23.664,85.81997684]
[1673905933813,20.0,23.682,23.666,20.0]
[1673905934141,31.69,23.681,23.667,49.70395324]
[1673905934328,40.0,23.68,23.667,49.70395324]
[1673905934747,40.0,23.68,23.667,78.76572769]
[1673905934962,40.0,23.68,23.668,17.0]
[1673905935493,20.0,23.68,23.668,17.0]
[1673905935808,20.0,23.681,23.669,20.0]
[1673905936016,31.69,23.683,23.669,67.97002645]
[1673905936232,20.0,23.685,23.669,20.0]
[1673905936547,51.69,23.684,23.669,38.908252]
[1673905936739,20.0,23.684,23.669,18.908252]
[1673905937393,20.0,23.689,23.67,95.01933636]
[1673905937598,20.0,23.689,23.672,20.0]
[1673905937809,20.0,23.689,23.673,17.0]
[1673905938012,31.68,23.691,23.673,85.57581391]
[1673905938223,20.0,23.69,23.674,38.908252]
[1673905938636,20.0,23.689,23.675,18.908252]
[1673905939793,20.0,23.689,23.67,16.29]
[1673905939998,20.0,23.689,23.671,18.908252]
[1673905940424,51.68,23.689,23.671,18.908252]
[1673905940855,20.0,23.687,23.671,18.908252]
[1673905941809,20.0,23.687,23.664,20.0]
[1673905941998,20.0,23.687,23.665,37.0]
[1673905942210,20.0,23.687,23.666,20.0]
[1673905942441,20.0,23.687,23.667,20.0]
[1673905942644,20.0,23.687,23.667,38.908252]
[1673905942863,20.0,23.687,23.668,38.908252]
[1673905943172,20.0,23.687,23.669,18.908252]
[1673905943574,20.0,23.685,23.669,18.908252]
[1673905943784,20.0,23.685,23.664,20.0]
[1673905944010,51.68,23.689,23.666,20.0]
[1673905944335,51.68,23.689,23.667,18.908252]
[1673905944526,20.0,23.689,23.667,18.908252]
[1673905944742,20.0,23.689,23.669,20.0]
[1673905944951,20.0,23.689,23.67,17.0]
[1673905945157,20.0,23.689,23.671,20.0]
[1673905945367,20.0,23.689,23.671,38.908252]
[1673905945568,31.68,23.691,23.672,18.908252]
[1673905945783,20.0,23.695,23.674,20.0]
[1673905946025,51.68,23.692,23.675,17.0]
[1673905946338,51.68,23.692,23.675,18.908252]
[1673905946560,17.0,23.691,23.675,18.908252]
[1673905946741,31.68,23.69,23.675,18.908252]
[1673905947283,48.68,23.691,23.675,18.908252]
[1673905947492,17.0,23.689,23.675,18.908252]
[1673905948637,20.0,23.688,23.665,69.66756191]
[1673905948850,20.0,23.688,23.67,17.0]
[1673905949060,20.0,23.688,23.672,18.908252]
[1673905949389,20.0,23.688,23.665,49.66756191]
[1673905949597,20.0,23.686,23.662,114.4491]
[1673905949787,20.0,23.684,23.663,20.0]
[1673905949999,31.69,23.683,23.663,20.0]
[1673905950208,37.0,23.682,23.663,18.908252]
[1673905950418,31.69,23.681,23.664,18.908252]
[1673905950629,20.0,23.68,23.664,18.908252]
[1673905951173,20.0,23.68,23.662,114.4491]
[1673905951487,20.0,23.68,23.663,18.908252]
[1673905951888,31.7,23.679,23.663,18.908252]
[1673905952099,20.0,23.686,23.664,79.98273155]
[1673905952327,20.0,23.686,23.664,50.9209571]
[1673905952535,20.0,23.686,23.665,18.908252]
[1673905952944,20.0,23.686,23.666,20.0]
[1673905953370,20.0,23.686,23.667,18.908252]
[1673905953799,20.0,23.686,23.668,37.0]
[1673905954208,20.0,23.686,23.669,18.908252]
[1673905955269,17.0,23.685,23.669,18.908252]
[1673905955686,20.0,23.684,23.669,18.908252]
[1673905955892,17.0,23.683,23.662,114.4491]
[1673905956098,16.17,23.68,23.652,113.2037]
[1673905956310,20.0,23.678,23.655,20.0]
[1673905956525,17.0,23.677,23.655,20.0]
[1673905956734,31.7,23.676,23.655,20.0]
[1673905956939,20.0,23.678,23.656,18.908252]
[1673905957359,31.69,23.683,23.656,18.908252]
[1673905957570,20.0,23.681,23.657,20.0]
[1673905957778,31.69,23.68,23.657,20.0]
[1673905957994,20.0,23.679,23.659,20.0]
[1673905958419,20.0,23.679,23.66,18.908252]
[1673905958751,20.0,23.677,23.66,18.908252]
[1673905958944,48.7,23.676,23.66,18.908252]
[1673905959156,48.7,23.676,23.653,20.0]
[1673905959479,20.0,23.675,23.654,20.0]
[1673905959689,48.7,23.674,23.654,20.0]
[1673905959892,20.0,23.673,23.654,20.0]
[1673905960100,48.7,23.672,23.654,20.0]
[1673905960299,31.7,23.673,23.653,20.0]
[1673905960503,31.7,23.676,23.656,20.0]
[1673905960728,20.0,23.677,23.657,20.0]
[1673905960947,31.7,23.678,23.658,20.0]
[1673905961151,20.0,23.689,23.658,20.0]
[1673905961152,31.69,23.68,23.658,41.006252]
[1673905961370,31.69,23.68,23.659,18.908252]
[1673905961582,20.0,23.682,23.659,18.908252]
[1673905961773,51.69,23.681,23.659,18.908252]
[1673905963454,20.0,23.681,23.66,17.0]
[1673905963659,51.69,23.681,23.66,108.7441]
[1673905963892,51.69,23.681,23.661,54.816504]
[1673905964216,51.69,23.681,23.661,35.908252]
[1673905964396,20.0,23.681,23.662,18.908252]
[1673905964918,31.69,23.68,23.662,18.908252]
[1673905965129,51.69,23.681,23.662,18.908252]
[1673905966925,20.0,23.681,23.663,17.0]
[1673905967132,20.0,23.681,23.662,18.908252]
[1673905967335,20.0,23.681,23.66,125.0341]
[1673905967336,20.0,23.681,23.664,18.908252]
[1673905967545,20.0,23.681,23.665,20.0]
[1673905967757,20.0,23.681,23.66,125.0341]
[1673905967976,20.0,23.681,23.664,37.816504]
[1673905967977,31.69,23.68,23.664,37.816504]
[1673905968184,31.69,23.68,23.664,18.908252]
[1673905969238,20.0,23.679,23.664,18.908252]
[1673905970819,31.7,23.678,23.664,18.908252]
[1673905971033,48.7,23.678,23.652,113.2037]
[1673905971243,48.7,23.678,23.656,49.63993454]
[1673905971436,20.0,23.677,23.657,20.0]
[1673905971647,31.7,23.676,23.657,38.908252]
[1673905971863,17.0,23.675,23.658,37.816504]
[1673905972080,20.0,23.674,23.658,18.908252]
[1673905972272,20.0,23.674,23.653,20.0]
[1673905972483,48.7,23.673,23.653,20.0]
[1673905973323,20.0,23.672,23.653,20.0]
[1673905973550,16.29,23.67,23.652,113.2037]
[1673905973761,31.71,23.669,23.646,18.908252]
[1673905973953,17.0,23.668,23.641,120.7884]
[1673905974164,31.71,23.667,23.642,18.908252]
[1673905974374,20.0,23.665,23.642,18.908252]
[1673905974595,17.0,23.664,23.642,18.908252]
[1673905975024,17.0,23.664,23.643,20.0]
[1673905975457,17.0,23.664,23.644,18.908252]
[1673905975637,48.72,23.664,23.644,18.908252]
[1673905975848,17.0,23.664,23.644,18.908252]
[1673905976081,20.0,23.665,23.644,18.908252]
[1673905976377,51.71,23.665,23.644,18.908252]
[1673905976597,20.0,23.665,23.641,118.6584]
[1673905976921,20.0,23.663,23.642,20.0]
[1673905977111,20.0,23.663,23.643,20.0]
[1673905977327,20.0,23.663,23.644,20.0]
[1673905977754,20.0,23.663,23.645,38.908252]
[1673905977969,20.0,23.663,23.646,20.0]
[1673905978174,20.0,23.663,23.646,38.908252]
[1673905978391,31.71,23.665,23.648,20.0]
[1673905978593,20.0,23.666,23.648,20.0]
[1673905978920,20.0,23.666,23.649,18.908252]
[1673905979958,17.0,23.665,23.647,20.0]
[1673905980167,17.0,23.665,23.648,18.908252]
[1673905980794,20.0,23.664,23.648,18.908252]
[1673905981966,20.0,23.668,23.648,18.908252]
[1673905982175,20.0,23.668,23.649,17.0]
[1673905982389,20.0,23.668,23.65,20.0]
[1673905982584,20.0,23.668,23.651,17.0]
[1673905982795,20.0,23.668,23.651,35.908252]
[1673905983136,20.0,23.668,23.652,18.908252]
[1673905983312,20.0,23.666,23.652,18.908252]
[1673905983753,51.71,23.668,23.652,18.908252]
[1673905983963,20.0,23.668,23.648,20.0]
[1673905984166,20.0,23.668,23.65,20.0]
[1673905984383,20.0,23.668,23.651,17.0]
[1673905984597,20.0,23.668,23.651,35.908252]
[1673905984797,31.71,23.669,23.652,18.908252]
[1673905985005,31.7,23.673,23.653,20.0]
[1673905985325,20.0,23.677,23.655,20.0]
[1673905985539,31.7,23.676,23.656,17.0]
[1673905985862,31.7,23.676,23.657,40.0]
[1673905986063,31.7,23.676,23.658,17.0]
[1673905986383,20.0,23.677,23.659,20.0]
[1673905986580,20.0,23.677,23.66,17.0]
[1673905986790,31.7,23.676,23.66,35.908252]
[1673905986998,31.7,23.676,23.661,18.908252]
[1673905987206,20.0,23.675,23.661,18.908252]
[1673905987423,20.0,23.673,23.657,20.0]
[1673905987636,31.7,23.672,23.658,18.908252]
[1673905987968,20.0,23.671,23.655,20.0]
[1673905988274,20.0,23.671,23.656,18.908252]
[1673905988491,20.0,23.671,23.657,20.0]
[1673905989832,20.0,23.671,23.657,57.816504]
[1673905990273,20.0,23.671,23.657,38.908252]
[1673905990682,31.7,23.672,23.658,20.0]
[1673905991090,31.7,23.672,23.659,18.908252]
[1673905991301,20.0,23.677,23.661,20.0]
[1673905991511,20.0,23.677,23.662,17.0]
[1673905991734,20.0,23.677,23.662,35.908252]
[1673905991933,20.0,23.677,23.663,57.816504]
[1673905992147,20.0,23.677,23.664,20.0]
[1673905992353,20.0,23.68,23.664,38.908252]
[1673905992564,20.0,23.68,23.665,18.908252]
[1673905992774,20.0,23.68,23.666,20.0]
[1673905993634,31.69,23.683,23.666,38.908252]
[1673905994245,31.69,23.683,23.651,20.0]
[1673905994246,20.0,23.68,23.651,20.0]
[1673905994474,17.0,23.679,23.661,18.908252]
[1673905994669,20.0,23.677,23.661,18.908252]
[1673905994879,17.0,23.676,23.661,18.908252]
[1673905995095,20.0,23.674,23.661,18.908252]
[1673905996895,20.0,23.677,23.662,20.0]
[1673905997113,20.0,23.677,23.661,18.908252]
[1673905997297,20.0,23.677,23.662,18.908252]
[1673905998582,20.0,23.677,23.663,20.0]
[1673905998782,20.0,23.677,23.662,18.908252]
[1673905999007,20.0,23.677,23.663,18.908252]
[1673905999189,20.0,23.677,23.661,20.0]
[1673905999400,20.0,23.677,23.657,20.0]
[1673906000052,20.0,23.677,23.661,18.908252]
[1673906001309,20.0,23.677,23.662,20.0]
[1673906001506,20.0,23.677,23.661,18.908252]
[1673906001711,20.0,23.677,23.663,18.908252]
[1673906001930,20.0,23.677,23.661,20.0]
[1673906002253,20.0,23.677,23.661,18.908252]
[1673906002473,20.0,23.677,23.662,18.908252]
[1673906004471,19.5,23.677,23.662,18.908252]
[1673906005311,19.5,23.677,23.663,20.0]
[1673906005524,19.5,23.677,23.662,18.908252]
[1673906005715,19.5,23.677,23.664,18.908252]
[1673906008043,19.5,23.677,23.661,20.0]
[1673906008355,19.5,23.677,23.662,18.908252]
[1673906009294,19.5,23.677,23.657,20.0]
[1673906009504,19.5,23.677,23.661,20.0]
[1673906009714,19.5,23.677,23.657,20.0]
[1673906009926,19.5,23.677,23.662,18.908252]
[1673906010982,51.2,23.677,23.662,18.908252]
[1673906011191,17.0,23.676,23.656,108.0269]
[1673906011404,31.7,23.675,23.652,20.0]
[1673906011739,20.0,23.674,23.657,18.908252]
[1673906011908,20.0,23.672,23.652,20.0]
[1673906012240,20.0,23.672,23.653,18.908252]
[1673906012861,20.0,23.672,23.654,17.0]
[1673906013075,20.0,23.672,23.655,20.0]
[1673906013286,31.7,23.678,23.655,41.292252]
[1673906013503,20.0,23.678,23.657,20.0]
[1673906013732,20.0,23.678,23.658,17.0]
[1673906013914,20.0,23.678,23.659,20.0]
[1673906014251,20.0,23.678,23.66,17.0]
[1673906014573,20.0,23.678,23.66,154.570752]
[1673906014752,20.0,23.678,23.661,18.908252]
[1673906014963,20.0,23.676,23.661,18.908252]
[1673906015173,31.7,23.675,23.661,18.908252]
[1673906015391,20.0,23.676,23.661,18.908252]
[1673906017803,51.7,23.678,23.661,18.908252]
[1673906018013,31.7,23.678,23.662,20.0]
[1673906018349,20.0,23.679,23.662,38.908252]
[1673906019165,20.0,23.679,23.662,18.908252]
[1673906019704,20.0,23.68,23.663,20.0]
[1673906020132,20.0,23.68,23.663,38.908252]
[1673906020449,31.69,23.681,23.663,38.908252]
[1673906020646,20.0,23.68,23.663,38.908252]
[1673906023472,20.0,23.68,23.663,18.908252]
[1673906023705,48.7,23.679,23.66,118.6625]
[1673906023915,20.0,23.678,23.66,156.479004]
[1673906024210,31.7,23.677,23.66,137.570752]
[1673906024445,51.7,23.678,23.66,137.570752]
[1673906024857,51.7,23.678,23.661,20.0]
[1673906025276,51.7,23.678,23.661,38.908252]
[1673906025485,51.7,23.678,23.661,18.908252]
[1673906026546,51.7,23.678,23.662,20.0]
[1673906026742,20.0,23.678,23.661,18.908252]
[1673906027160,31.7,23.677,23.661,18.908252]
[1673906027375,20.0,23.678,23.661,18.908252]
[1673906029160,20.0,23.678,23.66,118.6625]
[1673906030005,20.0,23.678,23.66,137.570752]
[1673906030224,17.0,23.677,23.66,137.570752]
[1673906030538,20.0,23.676,23.66,137.570752]
[1673906032315,20.0,23.674,23.66,118.6625]
[1673906032738,20.0,23.672,23.66,118.6625]
[1673906033885,16.29,23.67,23.651,18.908252]
[1673906034090,16.29,23.67,23.652,18.908252]
[1673906034295,17.0,23.669,23.652,18.908252]
[1673906034510,31.71,23.668,23.64,16.29]
[1673906034721,20.0,23.666,23.648,20.0]
[1673906035169,20.0,23.666,23.649,18.908252]
[1673906035376,17.0,23.665,23.649,18.908252]
[1673906035689,20.0,23.666,23.649,18.908252]
[1673906035898,17.0,23.665,23.649,18.908252]
[1673906036097,20.0,23.666,23.649,18.908252]
[1673906036737,20.0,23.666,23.65,20.0]
[1673906037149,20.0,23.666,23.651,18.908252]
[1673906037774,31.71,23.669,23.651,18.908252]
[1673906037984,12.11,23.67,23.651,18.908252]
[1673906038210,12.11,23.67,23.652,20.0]
[1673906038609,12.11,23.67,23.653,18.908252]
[1673906039773,12.11,23.67,23.654,20.0]
[1673906039989,31.7,23.677,23.656,20.0]
[1673906040209,20.0,23.673,23.656,20.0]
[1673906040394,20.0,23.673,23.657,18.908252]
[1673906040729,31.7,23.675,23.657,18.908252]
[1673906040922,31.7,23.675,23.658,20.0]
[1673906041128,31.7,23.677,23.658,20.0]
[1673906041455,31.7,23.677,23.659,18.908252]
[1673906042928,31.7,23.678,23.659,18.908252]
[1673906043136,12.1,23.68,23.66,17.0]
[1673906043342,12.1,23.68,23.66,167.68413954]
[1673906043550,12.1,23.68,23.661,38.908252]
[1673906044610,31.69,23.683,23.663,20.0]
[1673906044826,20.0,23.685,23.664,37.0]
[1673906045026,12.11,23.68,23.664,38.908252]
[1673906045250,12.11,23.68,23.664,20.0]
[1673906045438,12.11,23.68,23.662,20.0]
[1673906045647,12.11,23.68,23.663,20.0]
[1673906045859,12.11,23.68,23.662,20.0]
[1673906046075,12.11,23.68,23.663,20.0]
[1673906048062,12.11,23.68,23.661,18.908252]
[1673906048274,17.0,23.679,23.661,18.908252]
[1673906048500,20.0,23.677,23.656,20.0]
[1673906048914,17.0,23.676,23.656,20.0]
[1673906049119,20.0,23.675,23.656,20.0]
[1673906049334,20.0,23.675,23.655,134.635652]
[1673906049530,20.0,23.673,23.655,134.635652]
[1673906049963,20.0,23.673,23.655,115.7274]
[1673906050179,20.0,23.673,23.656,20.0]
[1673906050389,17.0,23.672,23.656,20.0]
[1673906051667,20.0,23.671,23.656,20.0]
[1673906053008,20.0,23.669,23.655,115.7274]
[1673906053851,20.0,23.671,23.655,115.7274]
[1673906054081,20.0,23.673,23.655,115.7274]
[1673906054272,20.0,23.673,23.656,20.0]
[1673906054691,20.0,23.673,23.657,20.0]
[1673906055326,12.19,23.67,23.655,115.7274]
[1673906055537,12.19,23.67,23.646,18.908252]
[1673906055538,20.0,23.668,23.647,223.8711]
[1673906055864,17.0,23.667,23.647,223.8711]
[1673906056064,20.0,23.666,23.647,223.8711]
[1673906056271,17.0,23.665,23.647,223.8711]
[1673906056607,20.0,23.664,23.647,223.8711]